fUST/lending_fUST_20250910
["ID","MTS","AMOUNT","RATE_DAILY","PERIOD"]
[384617655,1757484638492,-480.0,0.00013698,2]
[384617656,1757484638501,-482.58967662,0.00013698,2]
[384617657,1757484638511,-480.0,0.00013698,2]
[384617658,1757484638520,-480.0,0.00013698,2]
[384617659,1757484638529,-533.66640635,0.00013698,2]
[384617660,1757484638539,-480.0,0.00013698,2]
[384617661,1757484638549,-480.0,0.00013698,2]
[384617662,1757484638558,-480.0,0.00013698,2]
[384617663,1757484638567,-480.0,0.00013698,2]
[384617664,1757484638576,-480.0,0.00013698,2]
[384617665,1757484638585,-480.0,0.00013698,2]
[384617666,1757484638595,-898.09,0.00013698,2]
[384617667,1757484638604,-480.0,0.00013698,2]
[384617668,1757484638613,-987.19,0.00013698,2]
[384617669,1757484638622,-480.0,0.00013698,2]
[384617670,1757484638631,-480.0,0.00013698,2]
[384617671,1757484638641,-174.233875,0.00013698,2]
[384617672,1757484638650,-174.233875,0.00013698,2]
[384617673,1757484638660,-174.233875,0.00013698,2]
[384617674,1757484638668,-174.233875,0.00013698,2]
[384617675,1757484638678,-174.233875,0.00013698,2]
[384617676,1757484638688,-174.233875,0.00013698,2]
[384617677,1757484638697,-174.233875,0.00013698,2]
[384617678,1757484638706,-1776.64814371,0.00013698,2]
[384617679,1757484638845,-2119.83,0.00013698,2]
[384617680,1757484638858,-1342.47067578,0.00013698,2]
[384617991,1757484642960,-3524.94118051,0.00013698,2]
[384617993,1757484642970,-174.233875,0.00013698,2]
[384617995,1757484642980,-489.5454951,0.00013698,2]
[384617997,1757484642989,-174.233875,0.00013698,2]
[384617998,1757484642999,-174.233875,0.00013698,2]
[384618000,1757484643008,-174.233875,0.00013698,2]
[384618002,1757484643017,-174.233875,0.00013698,2]
[384618004,1757484643027,-174.233875,0.00013698,2]
[384618006,1757484643036,-480.0,0.00013698,2]
[384618008,1757484643046,-174.233875,0.00013698,2]
[384618010,1757484643055,-174.233875,0.00013698,2]
[384618012,1757484643064,-174.233875,0.00013698,2]
[384618014,1757484643074,-174.233875,0.00013698,2]
[384618016,1757484643083,-174.233875,0.00013698,2]
[384618017,1757484643093,-174.233875,0.00013698,2]
[384618019,1757484643102,-174.233882,0.00013698,2]
[384618021,1757484643112,-480.0,0.00013698,2]
[384618023,1757484643121,-523.46463686,0.00013698,2]
[384618025,1757484643130,-480.0,0.00013698,2]
[384618027,1757484643140,-480.0,0.00013698,2]
[384618029,1757484643149,-480.0,0.00013698,2]
[384618031,1757484643158,-480.0,0.00013698,2]
[384618032,1757484643167,-480.0,0.00013698,2]
[384618034,1757484643177,-480.0,0.00013698,2]
[384618036,1757484643186,-194.86016477,0.00013698,2]
[384618292,1757484645888,-528.72983523,0.00013698,2]
[384618294,1757484645899,-480.0,0.00013698,2]
[384618296,1757484645909,-199.24139442,0.00013698,2]
[384618298,1757484645924,-151.0,0.00013698,2]
[384618300,1757484645933,-480.0,0.00013698,2]
[384618302,1757484645943,-480.0,0.00013698,2]
[384618304,1757484645953,-480.0,0.00013698,2]
[384618306,1757484645963,-392.18296715,0.00013698,2]
[384618308,1757484645972,-480.0,0.00013698,2]
[384618310,1757484645982,-480.0,0.00013698,2]
[384618312,1757484645991,-450.35459014,0.00013698,2]
[384618314,1757484646004,-32.80912456,0.00013698,2]
[384618316,1757484646013,-480.0,0.00013698,2]
[384618318,1757484646022,-480.0,0.00013698,2]
[384618320,1757484646031,-481.70173253,0.00013698,2]
[384618322,1757484646041,-480.0,0.00013698,2]
[384618324,1757484646050,-480.0,0.00013698,2]
[384618326,1757484646060,-480.0,0.00013698,2]
[384618328,1757484646069,-252.8576398,0.00013698,2]
[384618330,1757484646078,-481.40088777,0.00013698,2]
[384618332,1757484646087,-480.0,0.00013698,2]
[384618334,1757484646096,-480.0,0.00013698,2]
[384618335,1757484646106,-480.0,0.00013698,2]
[384618337,1757484646115,-480.0,0.00013698,2]
[384618339,1757484646124,-619.77004303,0.00013698,2]
[384618341,1757484646133,-480.0,0.00013698,2]
[384618343,1757484646143,-560.27372756,0.00013698,2]
[384618345,1757484646152,-480.0,0.00013698,2]
[384618347,1757484646161,-480.0,0.00013698,2]
[384618349,1757484646170,-480.0,0.00013698,2]
[384618351,1757484646180,-480.0,0.00013698,2]
[384618353,1757484646189,-480.0,0.00013698,2]
[384618355,1757484646198,-480.0,0.00013698,2]
[384618357,1757484646208,-482.55470668,0.00013698,2]
[384618359,1757484646217,-481.31408954,0.00013698,2]
[384618361,1757484646226,-482.0021607,0.00013698,2]
[384618363,1757484646236,-485.0186868,0.00013698,2]
[384618365,1757484646245,-486.463722,0.00013698,2]
[384618367,1757484646254,-480.0,0.00013698,2]
[384618369,1757484646264,-480.0,0.00013698,2]
[384618371,1757484646273,-466.67765092,0.00013698,2]
[384618373,1757484646283,-480.0,0.00013698,2]
[384618375,1757484646292,-481.02604439,0.00013698,2]
[384618377,1757484646302,-585.24,0.00013698,2]
[384618379,1757484646312,-480.0,0.00013698,2]
[384618381,1757484646321,-480.0,0.00013698,2]
[384618383,1757484646330,-480.0,0.00013698,2]
[384618385,1757484646340,-480.0,0.00013698,2]
[384618387,1757484646350,-480.0,0.00013698,2]
[384618389,1757484646359,-481.39996613,0.00013698,2]
[384618391,1757484646368,-151.893248,0.00013698,2]
[384618393,1757484646377,-480.0,0.00013698,2]
[384618395,1757484646387,-248.97963686,0.00013698,2]
[384618397,1757484646396,-157.0,0.00013698,2]
[384618399,1757484646405,-480.0,0.00013698,2]
[384618401,1757484646414,-480.0,0.00013698,2]
[384618403,1757484646424,-157.0,0.00013698,2]
[384618405,1757484646433,-157.0,0.00013698,2]
[384618407,1757484646443,-157.0,0.00013698,2]
[384618409,1757484646452,-480.0,0.00013698,2]
[384618411,1757484646461,-482.69981886,0.00013698,2]
[384618413,1757484646470,-157.0,0.00013698,2]
[384618414,1757484646479,-480.0,0.00013698,2]
[384618415,1757484646489,-486.47352937,0.00013698,2]
[384618416,1757484646499,-480.0,0.00013698,2]
[384618417,1757484646509,-486.10569269,0.00013698,2]
[384618418,1757484646518,-482.27346856,0.00013698,2]
[384618419,1757484646528,-151.0,0.00013698,2]
[384618420,1757484646539,-152.696778,0.00013698,2]
[384618421,1757484646549,-760.57,0.00013698,2]
[384618422,1757484646558,-480.0,0.00013698,2]
[384618423,1757484646567,-483.90666192,0.00013698,2]
[384618424,1757484646577,-480.0,0.00013698,2]
[384618425,1757484646586,-480.0,0.00013698,2]
[384618426,1757484646595,-480.0,0.00013698,2]
[384618427,1757484646604,-480.0,0.00013698,2]
[384618428,1757484646614,-480.0,0.00013698,2]
[384618429,1757484646624,-480.0,0.00013698,2]
[384618431,1757484646634,-480.0,0.00013698,2]
[384618432,1757484646644,-1004.19207732,0.00013698,2]
[384618434,1757484646653,-487.16865222,0.00013698,2]
[384618436,1757484646663,-480.0,0.00013698,2]
[384618439,1757484646673,-480.0,0.00013698,2]
[384618441,1757484646683,-486.95929557,0.00013698,2]
[384618442,1757484646692,-480.0,0.00013698,2]
[384618445,1757484646701,-480.0,0.00013698,2]
[384618446,1757484646711,-815.92,0.00013698,2]
[384618448,1757484646720,-480.0,0.00013698,2]
[384618450,1757484646729,-480.0,0.00013698,2]
[384618453,1757484646739,-480.0,0.00013698,2]
[384618454,1757484646748,-480.83538586,0.00013698,2]
[384618456,1757484646758,-515.14269308,0.00013698,2]
[384618458,1757484646768,-441.88219619,0.00013698,2]
[384618460,1757484646778,-480.0,0.00013698,2]
[384618461,1757484646792,-480.0,0.00013698,2]
[384618462,1757484646802,-500.0,0.00013698,2]
[384618463,1757484646811,-465.94066429,0.00013698,2]
[384618464,1757484646820,-480.0,0.00013698,2]
[384618465,1757484646831,-480.0,0.00013698,2]
[384618466,1757484646841,-480.0,0.00013698,2]
[384618467,1757484646850,-480.0,0.00013698,2]
[384618468,1757484646862,-484.89908354,0.00013698,2]
[384618469,1757484646872,-480.0,0.00013698,2]
[384618470,1757484646882,-480.0,0.00013698,2]
[384618471,1757484646891,-480.0,0.00013698,2]
[384618472,1757484646901,-480.0,0.00013698,2]
[384618473,1757484646910,-321.24701948,0.00013698,2]
[384618474,1757484646920,-480.0,0.00013698,2]
[384618475,1757484646929,-480.0,0.00013698,2]
[384618476,1757484646938,-480.99498659,0.00013698,2]
[384618477,1757484646948,-480.0,0.00013698,2]
[384618478,1757484646958,-480.0,0.00013698,2]
[384618479,1757484646967,-480.0,0.00013698,2]
[384618480,1757484646977,-480.0,0.00013698,2]
[384618481,1757484646986,-480.0,0.00013698,2]
[384618482,1757484646996,-480.0,0.00013698,2]
[384618483,1757484647005,-507.95226311,0.00013698,2]
[384618484,1757484647014,-483.21652975,0.00013698,2]
[384618485,1757484647024,-157.0,0.00013698,2]
[384618486,1757484647033,-157.0,0.00013698,2]
[384618487,1757484647042,-480.0,0.00013698,2]
[384618488,1757484647052,-500.0,0.00013698,2]
[384618489,1757484647062,-480.0,0.00013698,2]
[384618490,1757484647071,-157.0,0.00013698,2]
[384618491,1757484647081,-480.0,0.00013698,2]
[384618492,1757484647090,-484.87054972,0.00013698,2]
[384618493,1757484647100,-480.0,0.00013698,2]
[384618494,1757484647109,-480.0,0.00013698,2]
[384618495,1757484647119,-157.0,0.00013698,2]
[384618496,1757484647128,-480.0,0.00013698,2]
[384618497,1757484647138,-157.0,0.00013698,2]
[384618498,1757484647147,-480.0,0.00013698,2]
[384618499,1757484647157,-480.0,0.00013698,2]
[384618500,1757484647166,-798.65,0.00013698,2]
[384618501,1757484647176,-480.0,0.00013698,2]
[384618502,1757484647185,-480.0,0.00013698,2]
[384618503,1757484647195,-480.0,0.00013698,2]
[384618504,1757484647204,-5038.12,0.00013698,2]
[384618505,1757484647214,-157.0,0.00013698,2]
[384618506,1757484647224,-480.0,0.00013698,2]
[384618507,1757484647233,-480.0,0.00013698,2]
[384618508,1757484647242,-558.0,0.00013698,2]
[384618509,1757484647251,-480.0,0.00013698,2]
[384618510,1757484647261,-480.0,0.00013698,2]
[384618511,1757484647270,-484.81789755,0.00013698,2]
[384618512,1757484647280,-1104.48,0.00013698,2]
[384618513,1757484647289,-153.461365,0.00013698,2]
[384618514,1757484647299,-480.0,0.00013698,2]
[384618515,1757484647309,-480.0,0.00013698,2]
[384618516,1757484647318,-482.67525517,0.00013698,2]
[384618517,1757484647328,-480.0,0.00013698,2]
[384618518,1757484647338,-151.0,0.00013698,2]
[384618519,1757484647347,-151.0,0.00013698,2]
[384618520,1757484647356,-151.0,0.00013698,2]
[384618521,1757484647365,-154.170107,0.00013698,2]
[384618522,1757484647374,-480.0,0.00013698,2]
[384618523,1757484647383,-480.0,0.00013698,2]
[384618524,1757484647392,-480.0,0.00013698,2]
[384618525,1757484647402,-620.670251,0.00013698,2]
[384618526,1757484647411,-419.41663565,0.00013698,2]
[384618527,1757484647420,-620.670251,0.00013698,2]
[384618528,1757484647430,-483.72794287,0.00013698,2]
[384618529,1757484647439,-620.670251,0.00013698,2]
[384618530,1757484647448,-1873.01,0.00013698,2]
[384618531,1757484647458,-620.670251,0.00013698,2]
[384618532,1757484647467,-620.670251,0.00013698,2]
[384618533,1757484647476,-620.670251,0.00013698,2]
[384618534,1757484647486,-620.670251,0.00013698,2]
[384618535,1757484647495,-480.0,0.00013698,2]
[384618536,1757484647504,-620.670251,0.00013698,2]
[384618537,1757484647514,-480.0,0.00013698,2]
[384618538,1757484647523,-620.670251,0.00013698,2]
[384618540,1757484647532,-620.670251,0.00013698,2]
[384618541,1757484647542,-620.670251,0.00013698,2]
[384618542,1757484647551,-620.670251,0.00013698,2]
[384618543,1757484647561,-480.0,0.00013698,2]
[384618544,1757484647570,-480.0,0.00013698,2]
[384618545,1757484647580,-620.670251,0.00013698,2]
[384618546,1757484647589,-620.670251,0.00013698,2]
[384618547,1757484647598,-620.670251,0.00013698,2]
[384618548,1757484647607,-620.670251,0.00013698,2]
[384618549,1757484647617,-480.0,0.00013698,2]
[384618550,1757484647626,-620.670251,0.00013698,2]
[384618551,1757484647636,-480.0,0.00013698,2]
[384618552,1757484647645,-620.670251,0.00013698,2]
[384618553,1757484647655,-480.0,0.00013698,2]
[384618554,1757484647664,-620.670251,0.00013698,2]
[384618555,1757484647673,-620.670253,0.00013698,2]
[384618556,1757484647683,-480.0,0.00013698,2]
[384618557,1757484647692,-151.0,0.00013698,2]
[384618558,1757484647703,-155.462912,0.00013698,2]
[384618559,1757484647712,-480.0,0.00013698,2]
[384618560,1757484647721,-484.58362883,0.00013698,2]
[384618561,1757484647731,-480.0,0.00013698,2]
[384618562,1757484647830,-480.0,0.00013698,2]
[384618563,1757484647839,-480.0,0.00013698,2]
[384618564,1757484647850,-480.0,0.00013698,2]
[384618565,1757484647860,-480.0,0.00013698,2]
[384618566,1757484647869,-480.0,0.00013698,2]
[384618567,1757484647878,-491.61909584,0.00013698,2]
[384618568,1757484647888,-480.0,0.00013698,2]
[384618569,1757484647897,-480.0,0.00013698,2]
[384618570,1757484647906,-777.98,0.00013698,2]
[384618571,1757484647917,-480.0,0.00013698,2]
[384618572,1757484647926,-480.0,0.00013698,2]
[384618573,1757484647936,-480.0,0.00013698,2]
[384618574,1757484647945,-186.24101736,0.00013698,2]
[384618575,1757484647955,-480.0,0.00013698,2]
[384618576,1757484647964,-480.0,0.00013698,2]
[384618577,1757484647974,-480.0,0.00013698,2]
[384618578,1757484647983,-480.0,0.00013698,2]
[384618579,1757484647993,-480.0,0.00013698,2]
[384618580,1757484648002,-480.0,0.00013698,2]
[384618581,1757484648012,-480.0,0.00013698,2]
[384618582,1757484648021,-480.0,0.00013698,2]
[384618583,1757484648030,-482.04542949,0.00013698,2]
[384618584,1757484648040,-480.0,0.00013698,2]
[384618585,1757484648049,-480.0,0.00013698,2]
[384618586,1757484648059,-480.0,0.00013698,2]
[384618587,1757484648068,-483.0571686,0.00013698,2]
[384618588,1757484648078,-480.0,0.00013698,2]
[384618589,1757484648087,-382.86334931,0.00013698,2]
[384618590,1757484648096,-480.0,0.00013698,2]
[384618591,1757484648106,-480.0,0.00013698,2]
[384618592,1757484648116,-480.0,0.00013698,2]
[384618593,1757484648126,-480.0,0.00013698,2]
[384618594,1757484648134,-480.0,0.00013698,2]
[384618595,1757484648143,-151.0,0.00013698,2]
[384618596,1757484648152,-216.24062,0.00013698,2]
[384618597,1757484648162,-480.0,0.00013698,2]
[384618598,1757484648171,-480.0,0.00013698,2]
[384618599,1757484648180,-169.70544,0.00013698,2]
[384618600,1757484648189,-485.29326979,0.00013698,2]
[384618601,1757484648198,-480.0,0.00013698,2]
[384618602,1757484648208,-480.0,0.00013698,2]
[384618603,1757484648217,-480.0,0.00013698,2]
[384618604,1757484648227,-480.0,0.00013698,2]
[384618605,1757484648236,-400.7374212,0.00013698,2]
[384618606,1757484648245,-480.0,0.00013698,2]
[384618607,1757484648255,-482.39284202,0.00013698,2]
[384618608,1757484648265,-502.08102603,0.00013698,2]
[384618609,1757484648274,-480.0,0.00013698,2]
[384618610,1757484648284,-480.0,0.00013698,2]
[384618611,1757484648293,-480.0,0.00013698,2]
[384618612,1757484648302,-391.053406,0.00013698,2]
[384618613,1757484648312,-391.053406,0.00013698,2]
[384618614,1757484648321,-500.0,0.00013698,2]
[384618615,1757484648331,-391.053406,0.00013698,2]
[384618616,1757484648340,-396.57521107,0.00013698,2]
[384618617,1757484648349,-391.053406,0.00013698,2]
[384618618,1757484648359,-391.053406,0.00013698,2]
[384618619,1757484648368,-391.053406,0.00013698,2]
[384618620,1757484648377,-391.053406,0.00013698,2]
[384618621,1757484648387,-391.053406,0.00013698,2]
[384618622,1757484648396,-391.053406,0.00013698,2]
[384618623,1757484648405,-483.15461617,0.00013698,2]
[384618624,1757484648414,-391.053406,0.00013698,2]
[384618625,1757484648424,-391.053406,0.00013698,2]
[384618626,1757484648434,-391.053406,0.00013698,2]
[384618627,1757484648443,-391.053406,0.00013698,2]
[384618628,1757484648452,-391.053406,0.00013698,2]
[384618629,1757484648462,-391.053406,0.00013698,2]
[384618630,1757484648471,-391.053406,0.00013698,2]
[384618631,1757484648481,-151.0,0.00013698,2]
[384618632,1757484648490,-391.053406,0.00013698,2]
[384618633,1757484648500,-151.0,0.00013698,2]
[384618634,1757484648509,-391.053406,0.00013698,2]
[384618635,1757484648518,-391.053406,0.00013698,2]
[384618636,1757484648528,-156.053729,0.00013698,2]
[384618637,1757484648537,-391.053415,0.00013698,2]
[384618638,1757484648546,-480.0,0.00013698,2]
[384618639,1757484648556,-480.0,0.00013698,2]
[384618640,1757484648566,-480.0,0.00013698,2]
[384618641,1757484648575,-480.0,0.00013698,2]
[384618642,1757484648584,-480.0,0.00013698,2]
[384618643,1757484648594,-480.0,0.00013698,2]
[384618644,1757484648603,-488.61220085,0.00013698,2]
[384618645,1757484648612,-804.37,0.00013698,2]
[384618646,1757484648621,-500.0,0.00013698,2]
[384618647,1757484648629,-322.363769,0.00013699,2]
[384618648,1757484648638,-151.0,0.00013699,2]
[384618649,1757484648648,-151.0,0.00013699,2]
[384618650,1757484648657,-220.516662,0.00013699,2]
[384618651,1757484648666,-153.141208,0.00013699,2]
[384618652,1757484648675,-151.0,0.00013699,2]
[384618653,1757484648685,-151.0,0.00013699,2]
[384618654,1757484648695,-151.0,0.00013699,2]
[384618655,1757484648705,-151.0,0.00013699,2]
[384618656,1757484648714,-151.0,0.00013699,2]
[384618657,1757484648724,-151.0,0.00013699,2]
[384618658,1757484648734,-151.0,0.00013699,2]
[384618659,1757484648743,-151.0,0.00013699,2]
[384618660,1757484648753,-151.0,0.00013699,2]
[384618661,1757484648763,-151.0,0.00013699,2]
[384618662,1757484648773,-151.943923,0.00013699,2]
[384618663,1757484648783,-151.0,0.00013699,2]
[384618664,1757484648794,-151.0,0.00013699,2]
[384618665,1757484648804,-151.0,0.00013699,2]
[384618666,1757484648814,-151.0,0.00013699,2]
[384618667,1757484648825,-158.555301,0.00013699,2]
[384618668,1757484648835,-284.34988,0.00013699,2]
[384618669,1757484648844,-284.34988,0.00013699,2]
[384618670,1757484648855,-284.34988,0.00013699,2]
[384618671,1757484648865,-284.34988,0.00013699,2]
[384618672,1757484648875,-284.34988,0.00013699,2]
[384618673,1757484648884,-284.34988,0.00013699,2]
[384618674,1757484648894,-284.34988,0.00013699,2]
[384618675,1757484648903,-284.34988,0.00013699,2]
[384618676,1757484648913,-284.34988,0.00013699,2]
[384618677,1757484648923,-284.34988,0.00013699,2]
[384618678,1757484648933,-284.34988,0.00013699,2]
[384618679,1757484648943,-284.34988,0.00013699,2]
[384618680,1757484648955,-284.34988,0.00013699,2]
[384618681,1757484648964,-284.34988,0.00013699,2]
[384618682,1757484648973,-284.34988,0.00013699,2]
[384618683,1757484648984,-284.34988,0.00013699,2]
[384618684,1757484648993,-284.34988,0.00013699,2]
[384618685,1757484649003,-284.34988,0.00013699,2]
[384618686,1757484649012,-284.34988,0.00013699,2]
[384618687,1757484649021,-284.349879,0.00013699,2]
[384618688,1757484649031,-691.817192,0.00013699,2]
[384618689,1757484649041,-151.0,0.00013699,2]
[384618690,1757484649055,-151.0,0.00013699,2]
[384618691,1757484649064,-151.0,0.00013699,2]
[384618692,1757484649073,-151.0,0.00013699,2]
[384618693,1757484649083,-151.0,0.00013699,2]
[384618694,1757484649092,-151.0,0.00013699,2]
[384618695,1757484649102,-151.0,0.00013699,2]
[384618696,1757484649111,-151.0,0.00013699,2]
[384618697,1757484649120,-151.0,0.00013699,2]
[384618698,1757484649129,-151.0,0.00013699,2]
[384618699,1757484649139,-151.0,0.00013699,2]
[384618700,1757484649151,-151.0,0.00013699,2]
[384618701,1757484649168,-151.0,0.00013699,2]
[384618702,1757484649178,-151.0,0.00013699,2]
[384618703,1757484649188,-151.0,0.00013699,2]
[384618704,1757484649197,-151.0,0.00013699,2]
[384618705,1757484649208,-250.09306,0.00013699,2]
[384618706,1757484649218,-151.0,0.000137,2]
[384618707,1757484649227,-151.0,0.000137,2]
[384618708,1757484649237,-802.21790905,0.00013735,2]
[384618709,1757484649247,-2105.41764886,0.00013745,2]
[384618710,1757484649257,-168.0,0.00013768,2]
[384618711,1757484649267,-2183.31810187,0.000138,2]
[384618712,1757484649277,-151.0,0.000138,2]
[384618713,1757484649286,-802.21790905,0.00013804,2]
[384618714,1757484649296,-168.0,0.00013818,2]
[384618715,1757484649306,-2264.10087164,0.00013855,2]
[384618716,1757484649315,-929.39,0.00013867,2]
[384618717,1757484649324,-300.0,0.00013868,2]
[384618718,1757484649333,-300.0,0.00013868,2]
[384618719,1757484649342,-300.0,0.00013868,2]
[384618720,1757484649352,-300.0,0.00013868,2]
[384618721,1757484649362,-300.0,0.00013868,2]
[384618722,1757484649371,-300.0,0.00013868,2]
[384618723,1757484649380,-300.0,0.00013868,2]
[384618724,1757484649390,-300.0,0.00013868,2]
[384618725,1757484649399,-300.0,0.00013868,2]
[384618726,1757484649409,-300.0,0.00013868,2]
[384618727,1757484649418,-300.0,0.00013868,2]
[384618728,1757484649428,-300.0,0.00013868,2]
[384618729,1757484649437,-300.0,0.00013868,2]
[384618730,1757484649447,-300.0,0.00013868,2]
[384618731,1757484649456,-300.0,0.00013868,2]
[384618732,1757484649466,-6265.94291208,0.00013868,2]
[384618733,1757484649475,-802.21790905,0.00013872,2]
[384618734,1757484649485,-168.0,0.00013891,2]
[384618735,1757484649494,-586.0,0.00013899,2]
[384618736,1757484649503,-2347.87260389,0.0001391,2]
[384618737,1757484649513,-566.81596429,0.00013914,2]
[384618738,1757484649522,-168.0,0.00013937,2]
[384618739,1757484649532,-2434.74389024,0.00013965,2]
[384618740,1757484649540,-600.0,0.00013971,2]
[384618741,1757484649550,-929.39,0.00013971,2]
[384618742,1757484649559,-929.39,0.00013971,2]
[384618743,1757484649568,-929.39,0.00013971,2]
[384618744,1757484649578,-929.39,0.00013971,2]
[384618745,1757484649587,-200.0,0.00013971,2]
[384618746,1757484649596,-201.32629262,0.00013971,2]
[384618747,1757484649605,-500.0,0.00013972,2]
[384618748,1757484649614,-500.0,0.00013972,2]
[384618749,1757484649623,-157.0,0.00013972,2]
[384618750,1757484649632,-157.0,0.00013972,2]
[384618751,1757484649641,-193.33159042,0.00013972,2]
[384618752,1757484649650,-157.0,0.00013972,2]
[384618753,1757484649660,-157.0,0.00013972,2]
[384618754,1757484649669,-157.0,0.00013972,2]
[384618755,1757484649761,-157.0,0.00013972,2]
[384618756,1757484649771,-234.97757122,0.00013972,2]
[384618757,1757484649784,-500.0,0.00013972,2]
[384618758,1757484649793,-230.03803334,0.00013972,2]
[384618759,1757484649804,-169.20345706,0.00013972,2]
[384618760,1757484649813,-157.0,0.00013972,2]
[384618761,1757484649823,-558.0,0.00013972,2]
[384618762,1757484649832,-480.0,0.00013972,2]
[384618763,1757484649841,-482.27565353,0.00013972,2]
[384618764,1757484649856,-483.66126336,0.00013972,2]
[384618765,1757484649866,-373.92033763,0.00013972,2]
[384618766,1757484649876,-386.59069718,0.00013972,2]
[384618767,1757484649885,-321.39377504,0.00013972,2]
[384618768,1757484649894,-480.0,0.00013972,2]
[384618769,1757484649903,-480.0,0.00013972,2]
[384618770,1757484649912,-480.0,0.00013972,2]
[384618771,1757484649921,-480.0,0.00013972,2]
[384618772,1757484649931,-481.98807351,0.00013972,2]
[384618773,1757484649940,-491.11215553,0.00013972,2]
[384618774,1757484649949,-483.75347255,0.00013972,2]
[384618775,1757484649958,-482.59310584,0.00013972,2]
[384618776,1757484649968,-480.0,0.00013972,2]
[384618777,1757484649977,-482.12939696,0.00013972,2]
[384618778,1757484649986,-482.90130329,0.00013972,2]
[384618779,1757484649996,-480.0,0.00013972,2]
[384618780,1757484650005,-480.0,0.00013972,2]
[384618781,1757484650015,-273.51134506,0.00013972,2]
[384618782,1757484650024,-480.0,0.00013972,2]
[384618783,1757484650033,-480.0,0.00013972,2]
[384618784,1757484650043,-480.0,0.00013972,2]
[384618785,1757484650053,-482.44386569,0.00013972,2]
[384618786,1757484650063,-480.0,0.00013972,2]
[384618787,1757484650072,-480.0,0.00013972,2]
[384618788,1757484650081,-480.0,0.00013972,2]
[384618789,1757484650091,-480.0,0.00013972,2]
[384618790,1757484650101,-480.0,0.00013972,2]
[384618791,1757484650110,-482.01030406,0.00013972,2]
[384618792,1757484650119,-480.0,0.00013972,2]
[384618793,1757484650129,-485.32318461,0.00013972,2]
[384618794,1757484650138,-486.54634216,0.00013972,2]
[384618795,1757484650147,-482.27075232,0.00013972,2]
[384618796,1757484650157,-481.37939234,0.00013972,2]
[384618797,1757484650166,-482.5135632,0.00013972,2]
[384618798,1757484650175,-481.72634857,0.00013972,2]
[384618799,1757484650184,-481.96751736,0.00013972,2]
[384618800,1757484650194,-481.84640071,0.00013972,2]
[384618801,1757484650203,-480.0,0.00013972,2]
[384618802,1757484650212,-481.38547663,0.00013972,2]
[384618803,1757484650221,-481.59130569,0.00013972,2]
[384618804,1757484650230,-480.0,0.00013972,2]
[384618805,1757484650240,-481.64837105,0.00013972,2]
[384618806,1757484650249,-487.00458251,0.00013972,2]
[384618807,1757484650258,-480.88900136,0.00013972,2]
[384618808,1757484650268,-480.0,0.00013972,2]
[384618809,1757484650278,-480.0,0.00013972,2]
[384618810,1757484650287,-481.25813378,0.00013972,2]
[384618811,1757484650296,-484.61274603,0.00013972,2]
[384618812,1757484650307,-480.0,0.00013972,2]
[384618813,1757484650316,-480.0,0.00013972,2]
[384618814,1757484650326,-487.65591263,0.00013972,2]
[384618815,1757484650335,-480.0,0.00013972,2]
[384618816,1757484650346,-483.98089802,0.00013972,2]